bitfinex/quotes_ETHUSD_20220109
["timestamp","ask_amount","ask_price","bid_price","bid_amount"]
[1641709879748,1.59708,3132.3,3132.1,0.00511581]
[1641709881296,5.90719548,3132.3,3132.1,0.00511581]
[1641709881501,5.90719548,3132.3,3131.1,3.7754]
[1641709881502,0.53027815,3132.2,3132.0,0.00568424]
[1641709881696,7.04874,3132.1,3132.0,0.00568424]
[1641709881899,7.04874,3132.1,3131.2,1.26023162]
[1641709882095,1.59751,3131.8,3131.3,0.0096632]
[1641709882296,0.79878,3131.7,3131.3,0.0096632]
[1641709882496,1.06168,3131.7,3131.3,0.0096632]
[1641709882697,1.28318,3131.7,3131.3,0.0096632]
[1641709882898,0.79878,3131.6,3131.3,0.0096632]
[1641709883097,1.70018,3131.6,3131.3,0.0096632]
[1641709883698,1.70018,3131.6,3131.2,0.01023162]
[1641709884853,0.79878,3131.6,3131.2,0.01023162]
[1641709886857,0.79878,3131.6,3131.5,1.16616682]
[1641709887257,0.79878,3131.6,3131.5,0.00852635]
[1641709887657,0.79878,3131.6,3131.2,0.01023162]
[1641709888494,0.79878,3131.6,3131.2,1.33336239]
[1641709888892,0.79878,3131.6,3131.3,0.0096632]
[1641709893645,0.43973836,3131.7,3131.3,0.0096632]
[1641709894546,1.23847836,3131.7,3131.3,0.0096632]
[1641709894747,0.8340162,3131.6,3131.3,0.0096632]
[1641709894951,1.6327962,3131.6,3131.3,0.0096632]
[1641709898097,1.6327962,3131.6,3131.5,1.60479418]
[1641709898496,1.6327962,3131.6,3131.5,0.00852635]
[1641709898897,1.6327962,3131.6,3131.2,0.01023162]
[1641709900647,1.6327962,3131.6,3131.3,1.60589643]
[1641709900947,3.89230318,3131.5,3131.3,1.50589643]
[1641709901152,3.89230318,3131.5,3131.4,0.00909478]
[1641709901153,17.708,3131.5,3131.4,0.00909478]
[1641709901348,22.03138,3131.4,3131.3,1.50589643]
[1641709901549,22.03138,3131.4,3131.0,5.39568696]
[1641709901550,0.79911,3131.2,3131.0,5.39568696]
[1641709901748,8.3,3131.0,3130.0,3.7441]
[1641709901948,0.68814973,3130.5,3130.0,3.7441]
[1641709902149,0.458,3130.4,3130.0,3.7441]
[1641709903403,0.458,3130.4,3129.7,9.5988]
[1641709903597,0.458,3130.4,3129.7,3.6679]
[1641709903798,1.25717,3130.4,3129.7,3.6679]
[1641709904400,55.7116966,3130.4,3129.7,3.6679]
[1641709904998,59.2116966,3130.4,3129.7,3.6679]
[1641709910906,59.2116966,3130.4,3129.8,0.00909477]
[1641709912106,0.7992135,3130.1,3129.8,1.61499167]
[1641709912305,1.59846,3130.0,3129.8,1.61499167]
[1641709912515,1.59846,3130.0,3129.9,0.00852635]
[1641709912516,2.05646,3130.0,3129.9,0.00852635]
[1641709912709,24.793215,3129.9,3129.6,1.6060742]
[1641709912913,17.08147101,3129.7,3129.6,1.6060742]
[1641709913108,18.65339097,3129.7,3129.6,1.6060742]
[1641709913311,10.95,3129.6,3128.3,9.0463]
[1641709913509,0.7994746,3128.9,3128.8,1.40114137]
[1641709913710,0.06371205,3129.5,3129.2,1.3499491]
[1641709914155,0.458,3129.6,3129.3,0.00341054]
[1641709914557,2.05651,3129.6,3129.3,0.00341054]
[1641709914756,3.5,3129.5,3129.3,1.32911015]
[1641709914956,3.30886385,3129.5,3129.3,1.32911015]
[1641709915157,3.30886385,3129.5,3129.4,0.00284212]
[1641709915756,4.10817775,3129.5,3129.4,0.00284212]
[1641709916060,4.56617775,3129.5,3129.4,0.00284212]
[1641709916455,2.0566139,3129.5,3129.4,0.00284212]
[1641709916856,2.0566139,3129.5,3129.3,0.00341054]
[1641709917356,1.2573,3129.5,3129.3,0.00341054]
[1641709917556,1.2573,3129.5,3129.4,1.19027323]
[1641709918004,1.2573,3129.5,3129.4,1.19311535]
[1641709918402,1.22244871,3129.6,3129.4,1.19311535]
[1641709918605,1.68044871,3129.6,3129.4,1.19311535]
[1641709918803,2.68044871,3129.6,3129.5,0.00227369]
[1641709919005,7.77912871,3129.6,3129.5,0.00227369]
[1641709921303,6.97980871,3129.6,3129.5,0.00227369]
[1641709921504,1.88112871,3129.6,3129.5,0.00227369]
[1641709921953,0.88112871,3129.6,3129.5,0.00227369]
[1641709922153,1.88112871,3129.6,3129.5,0.00227369]
[1641709922355,0.88112871,3129.6,3129.5,0.00227369]
[1641709922555,3.47976871,3129.6,3129.5,0.00227369]
[1641709922857,2.47976871,3129.6,3129.5,0.00227369]
[1641709923058,1.458,3129.6,3129.5,0.00227369]
[1641709923456,0.458,3129.6,3129.5,0.00227369]
[1641709925410,0.458,3129.6,3129.3,1.60202293]
[1641709925411,0.75180068,3129.4,3129.3,1.60202293]
[1641709925602,2.00936068,3129.4,3129.3,1.60202293]
[1641709925800,2.00936068,3129.4,3129.3,1.60315978]
[1641709926001,2.80876588,3129.4,3129.3,1.60315978]
[1641709926500,2.80876588,3129.4,3129.3,0.00113685]
[1641709926701,2.80876588,3129.4,3129.3,1.13237879]
[1641709927502,2.39867,3129.5,3129.3,1.13237879]
[1641709927702,2.85667,3129.5,3129.3,1.13237879]
[1641709928604,0.09935537,3129.6,3129.3,1.13237879]
[1641709928806,0.458,3129.5,3129.3,1.13237879]
[1641709929958,0.79956,3129.4,3129.3,1.13237879]
[1641709931962,0.83459737,3129.8,3129.3,3.98481896]
[1641709932362,0.00113684,3129.7,3129.3,3.98481896]
[1641709932563,0.00113684,3129.7,3129.3,10.62691896]
[1641709932765,1.00454738,3130.3,3129.3,10.62691896]
[1641709933201,1.59842,3129.9,3129.5,1.60202293]
[1641709933402,0.79921,3129.9,3129.5,1.60202293]
[1641709933603,0.00170527,3129.8,3129.5,1.60202293]
[1641709934207,0.00170527,3129.8,3129.6,1.41328486]
[1641709934703,0.80093527,3129.8,3129.6,1.41328486]
[1641709935305,0.79921,3129.7,3129.6,1.41328486]
[1641709941204,0.79921,3129.7,3129.6,1.28613136]
[1641709944257,3.19689,3129.9,3129.6,1.28613136]
[1641709944455,3.19689,3129.9,3129.6,1.28726821]
[1641709944653,0.79924,3129.8,3129.6,1.28726821]
[1641709944854,0.79924,3129.8,3129.6,2.88929114]
[1641709945153,1.5984602,3129.8,3129.6,2.88929114]
[1641709946154,1.5984602,3129.8,3129.6,1.28726821]
[1641709947253,1.5984602,3129.8,3129.6,0.00113685]
[1641709947654,1.59862,3129.6,3129.4,0.0022737]
[1641709947915,2.39793,3129.6,3129.4,0.0022737]
[1641709948503,2.39793,3129.6,3129.4,1.19908008]
[1641709948904,2.39793,3129.6,3129.5,0.00170527]
[1641709949708,3.1972322,3129.6,3129.5,0.00170527]
[1641709951653,3.1972322,3129.6,3129.3,0.00284212]
[1641709951853,1.59864,3129.5,3129.3,0.00284212]
[1641709952156,5.89792,3130.4,3129.3,2.76873445]
[1641709952355,0.83452928,3130.3,3129.3,2.76873445]
[1641709952553,0.00113684,3130.0,3129.4,0.0022737]
[1641709953655,0.80026684,3130.0,3129.4,0.0022737]
[1641709953955,0.79913,3129.9,3129.4,0.0022737]
[1641709954157,0.79913,3129.9,3129.7,1.03733541]
[1641709954757,0.00113684,3130.0,3129.7,1.03733541]
[1641709955408,0.00113684,3130.0,3129.8,2.60842238]
[1641709955799,0.00113684,3130.0,3129.7,1.03733541]
[1641709956201,0.80024684,3130.0,3129.7,1.03733541]
[1641709957804,0.80024684,3130.0,3129.8,2.55396619]
[1641709958005,0.80024684,3130.0,3129.8,2.55606074]
[1641709958206,0.80024684,3130.0,3129.7,1.03733541]
[1641709958705,2.36344329,3130.3,3129.8,0.00113684]
[1641709959005,0.00113685,3130.2,3129.8,0.00113684]
[1641709959452,0.79911,3130.0,3129.8,0.00113684]
[1641709959854,0.79911,3130.0,3129.8,2.55403922]
[1641709960053,0.79911,3130.0,3129.8,0.00113684]
[1641709962554,0.79911,3130.0,3129.8,2.58601304]
[1641709962757,1.59824,3130.0,3129.8,0.00113684]
[1641709963901,1.59824,3130.0,3129.9,1.59923786]
[1641709964599,0.80017685,3130.2,3129.9,1.59923786]
[1641709965304,0.80017685,3130.2,3129.8,0.00113684]
[1641709965305,0.80017685,3130.2,3130.0,1.59923786]
[1641709966403,0.80017685,3130.2,3130.1,1.59923786]
[1641709967053,0.80017685,3130.2,3130.0,1.59923786]
[1641709967654,1.59930685,3130.2,3130.0,1.59923786]
[1641709967857,1.59828,3130.1,3130.0,1.59923786]
[1641709970403,1.59828,3130.1,3129.9,1.59923786]
[1641709970699,2.3974621,3130.1,3129.9,1.59923786]
[1641709972900,0.79921,3130.0,3129.8,1.6003747]
[1641709973104,2.3976223,3130.0,3129.8,1.6003747]
[1641709975151,2.3976223,3130.0,3129.9,1.59923786]
[1641709976353,0.79921,3130.0,3129.9,1.59923786]
[1641709976553,0.00113685,3130.2,3129.9,1.59923786]
[1641709976554,0.80018685,3130.2,3129.9,1.59923786]
[1641709977352,0.80018685,3130.2,3130.0,2.6545369]
[1641709977554,0.00113685,3130.2,3130.0,3.96317185]
[1641709977753,0.00113685,3130.2,3130.1,17.51809682]
[1641709978206,0.00113685,3130.2,3130.1,21.81809682]
[1641709978407,0.00113685,3130.2,3130.1,19.50376469]
[1641709978806,0.07953669,3131.2,3130.4,1.3499491]
[1641709979006,0.07953669,3131.2,3130.5,2.96885896]
[1641709979205,0.07953669,3131.2,3130.6,0.3]
[1641709979206,0.00397896,3130.9,3130.6,0.3]
[1641709979403,0.00397896,3130.9,3130.7,2.96885896]
[1641709979603,0.00341054,3130.8,3130.7,3.26885896]
[1641709979804,0.00341054,3130.8,3130.7,6.61467438]
[1641709980009,0.00341054,3130.8,3130.7,1.12145518]
[1641709980208,0.00341054,3130.8,3130.7,12.52145518]
[1641709981508,0.00196358,3130.8,3130.7,1.12145518]
[1641709982151,0.00196358,3130.8,3130.7,7.21500891]
[1641709983957,0.00196358,3130.8,3130.7,5.62145518]
[1641709984359,0.00196358,3130.8,3130.7,8.29225243]
[1641709984860,0.00196358,3130.8,3130.7,9.88498067]
[1641709985509,0.00196358,3130.8,3130.7,5.38498067]
[1641709986111,0.00196358,3130.8,3130.7,8.86418342]
[1641709987112,0.00196358,3130.8,3130.7,20.60827654]
[1641709987912,0.00196358,3130.8,3130.7,19.0155483]
[1641709988516,0.00196358,3130.8,3130.7,19.60836547]
[1641709988717,0.00196358,3130.8,3130.7,19.0155483]
[1641709991858,6.45047,3132.1,3130.7,19.0155483]
[1641709991859,0.4709951,3132.6,3130.8,17.2]
[1641709992056,0.4709951,3132.6,3131.5,0.7985092]
[1641709992257,0.0129951,3132.6,3131.7,0.58405584]
[1641709992456,10.0,3132.7,3131.8,2.72944684]
[1641709992903,0.01080005,3132.7,3131.8,2.72944684]
[1641709993505,0.01080005,3132.7,3132.3,1.01540808]
[1641709993903,0.80925005,3132.7,3132.3,1.01540808]
[1641709994304,24.80925005,3132.7,3132.3,1.01540808]
[1641709994704,18.0,3132.6,3132.3,1.01540808]
[1641709995007,0.0096632,3132.5,3132.3,1.01540808]
[1641709995408,0.00909478,3132.4,3132.3,1.01540808]
[1641709997058,0.00909478,3132.4,3132.3,5.76540808]
[1641709997557,0.00909478,3132.4,3132.3,1.01540808]
[1641709998658,1.23018266,3133.1,3132.3,1.01540808]
[1641709998859,0.458,3133.0,3132.3,1.01540808]
[1641709999058,0.00227369,3132.8,3132.3,1.01540808]
[1641709999457,0.00170527,3132.7,3132.3,1.53364692]
[1641709999859,0.00113684,3132.6,3132.3,1.53364692]
[1641710000260,0.80125211,3132.9,3132.3,1.53364692]
[1641710000504,0.80125211,3132.9,3132.8,1.12344005]
[1641710002808,0.00284211,3132.9,3132.8,2.00294005]
[1641710003707,0.00284211,3132.9,3132.8,4.70591069]
[1641710003909,0.00284211,3132.9,3132.8,9.15107885]
[1641710004154,0.00284211,3132.9,3132.8,9.07914042]
[1641710004956,0.00284211,3132.9,3132.8,22.32914042]
[1641710005956,0.79807,3134.3,3133.6,0.7001313]
[1641710006158,0.79812,3134.1,3133.0,12.69334116]
[1641710006659,2.94734116,3134.0,3133.0,9.746]
[1641710006858,13.458,3133.9,3132.9,1.1566]
[1641710007060,0.0120395,3133.7,3132.9,1.1566]
[1641710007257,0.798415,3133.2,3132.9,1.1566]
[1641710007457,2.395255,3133.2,3132.6,9.90319997]
[1641710007656,0.00113685,3133.1,3132.6,5.58259997]
[1641710007916,0.00113685,3133.1,3132.7,2.948478]
[1641710008305,0.00113685,3133.1,3132.7,4.37693684]
[1641710010205,0.00113685,3133.1,3132.8,2.53491838]
[1641710011007,0.00113685,3133.1,3132.9,1.2257]
[1641710011306,0.00113685,3133.1,3133.0,3.50290855]
[1641710011754,0.00113685,3133.1,3133.0,4.92625753]
[1641710011954,0.00113685,3133.1,3133.0,11.28935481]
[1641710012554,0.00113685,3133.1,3133.0,10.62334898]
[1641710014057,0.00113685,3133.1,3133.0,35.05334898]
[1641710014359,0.00113685,3133.1,3133.0,10.62334898]
[1641710014761,0.458,3134.2,3133.1,5.2]
[1641710014959,0.458,3134.2,3133.3,0.53208871]
[1641710015158,0.00568424,3134.1,3133.5,1.36445165]
[1641710015609,0.00511581,3134.0,3133.5,1.36445165]
[1641710016009,0.00454739,3133.9,3133.5,1.36445165]
[1641710016213,0.00454739,3133.9,3133.5,1.96445165]
[1641710016410,1.65974684,3134.9,3133.5,1.96445165]
[1641710016411,0.00397897,3133.8,3133.5,2.12515165]
[1641710016610,0.00397897,3133.8,3133.6,0.7979]
[1641710016909,0.00341054,3133.7,3133.6,0.7979]
[1641710017111,0.00341054,3133.7,3133.6,45.31615676]
[1641710017810,0.00341054,3133.7,3133.6,46.11405436]
[1641710018410,0.00341054,3133.7,3133.6,27.43405436]
[1641710018810,0.00341054,3133.7,3133.6,46.11405436]
[1641710019010,0.00341054,3133.7,3133.6,27.43405436]
[1641710019460,0.00341054,3133.7,3133.6,46.11405436]
[1641710020260,0.00341054,3133.7,3133.6,27.43405436]
[1641710020464,0.00341054,3133.7,3133.6,29.01913895]
[1641710020762,0.00341054,3133.7,3133.6,47.69913895]
[1641710021161,0.00341054,3133.7,3133.6,47.99913895]
[1641710021361,0.6410445,3134.8,3133.8,18.68]
[1641710021560,0.6410445,3134.8,3133.9,0.79784]
[1641710021761,0.00568424,3134.7,3133.9,0.79784]
[1641710021962,0.00568424,3134.7,3133.9,2.53878332]
[1641710022161,0.00511581,3134.6,3134.3,0.50735497]
[1641710022360,0.00511581,3134.6,3133.9,6.42698332]
[1641710022561,0.6410445,3134.8,3134.5,1.15356109]
[1641710023009,0.00568424,3134.7,3133.9,3.8882]
[1641710023410,0.00511581,3134.6,3133.9,3.8882]
[1641710023608,0.00511581,3134.6,3133.9,6.10132912]
[1641710023807,0.00454739,3134.5,3133.9,6.10132912]
[1641710024009,0.00454739,3134.5,3134.0,1.0779691]
[1641710024210,0.00397897,3134.4,3134.0,1.0779691]
[1641710024509,0.00341054,3134.3,3134.0,1.0779691]
[1641710024911,0.00284212,3134.2,3134.0,1.0779691]
[1641710025313,0.6410445,3134.8,3134.0,1.0779691]
[1641710025314,0.0022737,3134.1,3134.0,1.0779691]
[1641710026111,0.6410445,3134.8,3134.0,1.0779691]
[1641710026511,0.00341054,3134.7,3134.0,1.0779691]
[1641710026967,0.00284211,3134.6,3134.0,1.0779691]
[1641710027367,0.00227369,3134.5,3134.0,1.0779691]
[1641710027768,0.6410445,3134.8,3133.9,5.4481824]
[1641710027769,0.00170527,3134.4,3133.9,5.4481824]
[1641710027971,1.25774527,3134.4,3133.9,5.4481824]
[1641710028167,1.25774527,3134.4,3133.9,3.8882]
[1641710028168,0.79924684,3134.3,3133.9,3.8882]
[1641710028767,0.00113684,3134.3,3133.9,3.8882]
[1641710029173,0.79918684,3134.3,3133.9,3.8882]
[1641710030908,0.00113684,3134.3,3133.9,3.8882]
[1641710031908,0.00113684,3134.3,3133.9,5.4481824]
[1641710032509,0.00113684,3134.3,3134.0,1.5599824]
[1641710033312,0.00113684,3134.3,3133.9,3.8882]
[1641710033313,0.00113684,3134.3,3133.9,5.4481824]
[1641710033510,0.79918684,3134.3,3133.9,1.5599824]
[1641710033711,1.59729684,3134.3,3133.9,1.5599824]
[1641710033912,0.79924684,3134.3,3133.9,1.5599824]
[1641710034160,0.83334381,3134.2,3133.9,1.5599824]
[1641710034463,0.83334381,3134.2,3133.7,2.52880001]
[1641710034962,0.79809,3134.1,3133.8,0.00170527]
[1641710036162,0.79809,3134.1,3133.8,1.56168767]
[1641710036563,0.79809,3134.1,3133.9,0.00113685]
[1641710036863,0.79807,3134.4,3133.9,0.00113685]
[1641710037067,1.59611,3134.5,3133.9,0.00227369]
[1641710038310,2.2370245,3134.8,3133.8,0.00284211]
[1641710038705,0.00113685,3134.5,3133.8,0.00284211]
[1641710039608,1.40477446,3134.8,3133.8,0.00284211]
[1641710039806,1.40477446,3134.8,3133.8,0.00397896]
[1641710040008,0.00113685,3134.7,3133.8,0.00397896]
[1641710040407,1.00113685,3134.7,3133.8,0.00397896]
[1641710040606,0.79804,3134.5,3133.8,0.00397896]
[1641710040810,0.798,3134.4,3133.8,0.00397896]
[1641710043862,0.79795,3134.6,3133.8,0.00397896]
[1641710044062,0.79795,3134.6,3134.4,1.12152079]
[1641710046722,0.79795,3134.6,3133.8,0.00397896]
[1641710047926,1.59595,3134.6,3133.8,0.00397896]
[1641710048127,0.00113685,3134.7,3134.1,1.31168856]
[1641710048528,0.00113685,3134.7,3134.2,0.00170527]
[1641710049857,0.79795,3134.6,3134.2,0.00170527]
[1641710050260,3.1919606,3135.0,3134.2,0.00170527]
[1641710050261,0.66662215,3136.0,3135.8,9.10614918]
[1641710050462,7.10804498,3136.1,3135.9,4.57521619]
[1641710050463,6.65004498,3136.1,3135.9,4.57521619]
[1641710050658,6.16,3136.1,3135.9,1.68161439]
[1641710050860,0.79753,3136.5,3135.9,1.68161439]
[1641710051159,0.01023162,3136.5,3136.0,0.01248302]
[1641710051360,0.01023162,3136.5,3135.9,1.69436936]
[1641710051361,0.46823162,3136.5,3135.9,1.68161439]
[1641710051959,41.2799151,3136.4,3135.9,4.57521619]
[1641710052158,0.79772,3136.4,3135.9,1.68161439]
[1641710052359,0.00909477,3136.3,3135.9,1.68161439]
[1641710052764,0.00852635,3136.2,3135.9,1.68161439]
[1641710053023,0.79772,3136.1,3135.9,1.68161439]
[1641710053322,0.0073895,3136.0,3135.9,1.68161439]
[1641710053721,0.07116617,3136.0,3135.9,1.68161439]
[1641710053924,0.0073895,3136.0,3135.9,1.68161439]
[1641710057464,0.0073895,3136.0,3135.9,12.78974836]
[1641710057665,0.0073895,3136.0,3135.9,12.80263454]
[1641710059467,0.0073895,3136.0,3135.9,13.80263454]
[1641710059671,0.0073895,3136.0,3135.9,15.45223454]
[1641710060067,0.0073895,3136.0,3135.9,2.57321439]
[1641710060268,0.0073895,3136.0,3135.9,15.08431439]
[1641710061309,0.0073895,3136.0,3135.9,22.33431439]
[1641710061509,0.0073895,3136.0,3135.9,27.88341439]
[1641710061913,0.0073895,3136.0,3135.9,30.36011439]
[1641710062309,0.9497915,3137.6,3135.9,30.36011439]
[1641710062310,0.06377671,3137.2,3136.0,17.2]
[1641710062510,0.06377671,3137.2,3136.2,0.7973]
[1641710062710,1.41559389,3137.1,3136.3,2.5200516]
[1641710062912,1.41559389,3137.1,3136.2,1.5945328]
[1641710063110,0.00568424,3137.0,3136.1,4.3425]
[1641710063510,0.00511581,3136.9,3136.1,4.3425]
[1641710063710,0.79746,3136.8,3135.9,5.34271439]
[1641710063911,2.05754739,3136.8,3135.9,5.34271439]
[1641710064160,0.00397897,3136.7,3135.9,5.34271439]
[1641710064565,2.55546,3136.8,3135.9,6.14008439]
[1641710064566,0.00341054,3136.6,3135.9,6.14008439]
[1641710064763,1.07616233,3136.6,3135.9,6.14008439]
[1641710064964,0.00284212,3136.5,3135.9,6.14008439]
[1641710065363,0.0022737,3136.4,3135.9,6.14008439]
[1641710065563,0.0022737,3136.4,3136.0,0.7973966]
[1641710065764,0.00170527,3136.3,3136.0,0.7973966]
[1641710066264,1.07275179,3136.6,3136.0,0.7973966]
[1641710066265,0.00113685,3136.2,3136.0,0.7973966]
[1641710066664,0.00284212,3136.5,3136.0,0.7973966]
[1641710067067,0.0022737,3136.4,3136.0,0.7973966]
[1641710067565,0.00170527,3136.3,3136.0,0.7974002]
[1641710068010,0.00113685,3136.2,3136.0,0.7974002]
[1641710068413,0.00511581,3136.9,3136.0,0.7974002]
[1641710068811,3.35090671,3137.0,3136.1,2.45593623]
[1641710068812,0.00454739,3136.8,3136.1,2.45593623]
[1641710069010,0.00454739,3136.8,3136.0,0.7974002]
[1641710069212,0.00397897,3136.7,3136.0,3.2537596]
[1641710069511,0.00341054,3136.6,3136.2,0.7973484]
[1641710069912,0.00284212,3136.5,3136.2,0.7973484]
[1641710070112,0.00284212,3136.5,3136.3,2.45079294]
[1641710070312,1.55351671,3137.0,3136.1,2.77260501]
[1641710070313,0.0022737,3136.4,3136.1,2.77260501]
[1641710070712,0.00170527,3136.3,3136.1,3.56988891]
[1641710070912,0.00170527,3136.3,3136.2,14.54064033]
[1641710071116,0.458,3137.0,3136.2,14.54064033]
[1641710071513,0.00511581,3136.9,3136.2,14.54064033]
[1641710071759,0.00511581,3136.9,3136.2,16.13524033]
[1641710072059,0.458,3137.0,3136.2,16.13524033]
[1641710072060,0.00454739,3136.8,3136.2,16.13524033]
[1641710072265,0.00454739,3136.8,3136.2,3.58798733]
[1641710072462,0.00397897,3136.7,3136.0,3.75805848]
[1641710072962,0.00341054,3136.6,3136.0,3.75805848]
[1641710073362,0.00284212,3136.5,3136.0,3.75805848]
[1641710073762,0.0022737,3136.4,3136.1,0.7973722]
[1641710073962,0.0022737,3136.4,3136.2,2.59799541]
[1641710074163,0.00170527,3136.3,3136.2,6.79799541]
[1641710074564,0.00170527,3136.3,3136.2,6.65032413]
[1641710074866,0.00170527,3136.3,3136.2,4.2]
[1641710075264,0.00170527,3136.3,3136.1,0.7973722]
[1641710075709,45.33255602,3137.0,3136.1,0.7973722]
[1641710075710,0.00113685,3136.2,3136.1,0.7973722]
[1641710076110,0.00113685,3136.2,3136.0,1.2087]
[1641710078411,0.00113685,3136.2,3136.0,3.68280847]
[1641710078813,0.00113685,3136.2,3136.0,1.2087]
[1641710079962,0.00113685,3136.2,3135.9,10.85811439]
[1641710080361,0.06377671,3136.1,3135.9,5.34271439]
[1641710080659,0.06377671,3136.1,3136.0,0.00113685]
[1641710081258,0.86139671,3136.1,3136.0,0.00113685]
[1641710081459,0.06377671,3136.1,3136.0,0.00113685]
[1641710081659,2.85195685,3136.4,3136.0,0.00113685]
[1641710081959,0.45913685,3136.4,3136.0,0.00113685]
[1641710082671,0.00113685,3136.4,3136.0,0.00113685]
[1641710083625,0.00113685,3136.4,3136.0,0.79846685]
[1641710083822,0.00113685,3136.4,3136.1,2.51687317]
[1641710084222,0.00113685,3136.4,3136.1,0.7973628]
[1641710084422,0.00113685,3136.4,3136.0,0.00113685]
[1641710088065,0.00113685,3136.4,3136.1,0.7973628]
[1641710088264,0.00113685,3136.4,3136.2,2.55181784]
[1641710088663,0.00113685,3136.4,3136.0,3.65972658]
[1641710090067,0.00113685,3136.4,3136.0,1.19323685]
[1641710091115,1.14149095,3136.4,3136.0,1.19323685]
[1641710091319,0.00113685,3136.4,3136.1,2.51563091]
[1641710091717,0.00113685,3136.4,3136.0,0.00113685]
[1641710094667,2.85184345,3136.4,3136.0,0.00113685]
[1641710095469,2.05418685,3136.4,3136.0,0.00113685]
[1641710095770,1.25664685,3136.4,3136.0,0.00113685]
[1641710097567,0.45913685,3136.4,3136.0,0.00113685]
[1641710098818,0.00113685,3136.4,3136.0,0.00113685]
[1641710099317,0.00113685,3136.4,3136.0,1.24823685]
[1641710099517,0.00113685,3136.4,3136.1,2.84641358]
[1641710099718,0.00113685,3136.4,3136.1,4.40639598]
[1641710099918,0.00113685,3136.4,3136.2,0.79732]
[1641710100319,0.00113685,3136.4,3136.2,2.3919099]
[1641710100720,0.00113685,3136.4,3136.3,17.5099824]
[1641710101966,0.07865172,3136.9,3136.3,1.5599824]
[1641710101967,0.91126804,3136.9,3136.3,1.5599824]
[1641710102267,0.00227369,3136.8,3136.3,1.5599824]
[1641710102467,0.00227369,3136.8,3136.4,2.48911422]
[1641710102668,0.00170527,3136.7,3136.4,2.48911422]
[1641710102969,0.00113684,3136.6,3136.4,2.48911422]
[1641710103170,0.00113684,3136.6,3136.2,4.04015511]
[1641710103370,0.00113684,3136.6,3136.2,1.5599824]
[1641710103970,0.00113684,3136.6,3136.0,3.69358078]
[1641710103971,0.00113684,3136.6,3136.3,0.7973312]
[1641710104471,0.00113684,3136.6,3136.1,1.5599824]
[1641710104671,0.00113684,3136.6,3136.2,2.53422914]
[1641710104870,0.00113684,3136.6,3136.2,2.53536599]
[1641710106321,0.00113684,3136.6,3136.2,4.09534839]
[1641710107319,0.00113684,3136.6,3136.3,1.5599824]
[1641710108020,0.00113684,3136.6,3136.2,1.56111925]
[1641710108521,0.458,3136.5,3136.2,1.56111925]
[1641710108723,12.108,3136.4,3136.3,0.00170527]
[1641710108922,14.50097,3136.4,3136.3,0.00170527]
[1641710109169,14.50097,3136.4,3136.1,1.5599824]
[1641710109170,14.50097,3136.4,3136.2,0.00227369]
[1641710109769,15.2986497,3136.4,3136.2,0.00227369]
[1641710109970,16.0963397,3136.4,3136.0,0.00341054]
[1641710110170,1.40382949,3136.1,3136.0,0.00341054]
[1641710110373,2.65949949,3136.1,3136.0,0.00341054]
[1641710113514,0.458,3136.1,3136.0,0.00341054]
[1641710113714,0.53665172,3136.6,3136.0,13.82596086]
[1641710113917,0.07865172,3136.6,3136.0,13.82596086]
[1641710114114,0.07865172,3136.6,3136.1,0.00284212]
[1641710114614,0.07865172,3136.6,3136.2,0.79727]
[1641710114814,0.07865172,3136.6,3136.3,0.79726]
[1641710115014,0.07865172,3136.6,3136.3,1.59623967]
[1641710115214,1.29061632,3136.9,3136.4,0.00113684]
[1641710115514,0.00113685,3136.8,3136.4,0.00113684]
[1641710117464,0.00113685,3136.8,3136.3,0.00170527]
[1641710117866,0.00113685,3136.8,3136.2,0.00227369]
[1641710118064,0.00113685,3136.8,3136.2,0.79959439]
[1641710118265,1.31632287,3136.6,3136.2,0.00227369]
[1641710118466,1.31632287,3136.6,3136.3,0.00170527]
[1641710118668,1.31632287,3136.6,3136.2,0.00227369]
[1641710118867,0.00113685,3136.8,3136.2,2.43377845]
[1641710119170,0.00113685,3136.8,3136.3,0.00170527]
[1641710119766,1.24175317,3136.9,3136.3,0.00170527]
[1641710120166,1.24175317,3136.9,3136.3,0.00284212]
[1641710120614,2.45262365,3136.9,3136.3,0.00284212]
[1641710120913,0.82252795,3136.9,3136.3,0.00284212]
[1641710121314,1.61987795,3136.9,3136.3,0.00284212]
[1641710121515,2.41728795,3136.9,3136.3,0.00284212]
[1641710121717,0.82252795,3136.9,3136.3,0.00284212]
[1641710122718,1.25533,3137.0,3136.3,3.26729226]
[1641710122919,0.458,3137.0,3136.4,2.41643034]
[1641710123218,0.458,3137.0,3136.4,0.00227369]
[1641710123420,0.458,3137.0,3136.5,0.00170527]
[1641710123618,0.458,3137.0,3136.3,2.52460138]
[1641710123619,0.458,3137.0,3136.3,2.5274435]
[1641710123818,0.458,3137.0,3136.5,0.7972287]
[1641710124018,0.458,3137.0,3136.5,3.23472231]
[1641710124274,0.458,3137.0,3136.6,0.00113685]
[1641710127165,0.458,3137.0,3136.5,2.42123482]
[1641710127566,0.458,3137.0,3136.6,0.00113685]
[1641710128615,0.458,3137.0,3136.5,0.00170527]
[1641710128813,0.458,3137.0,3136.4,0.00227369]
[1641710129714,0.458,3137.0,3136.7,0.7971904]
[1641710130515,0.458,3137.0,3136.5,2.41330049]
[1641710130713,0.458,3137.0,3136.5,2.4104734]
[1641710130913,0.458,3137.0,3136.6,0.00113685]
[1641710131114,0.83265118,3137.5,3136.6,0.00113685]
[1641710131115,0.458,3137.4,3136.6,0.00113685]
[1641710131515,0.46141054,3137.4,3136.6,0.00113685]
[1641710131966,0.46141054,3137.4,3136.8,0.7971633]
[1641710132666,0.46141054,3137.4,3136.8,3.22184709]
[1641710132867,46.94153266,3137.4,3136.8,3.22472016]
[1641710133068,46.94153266,3137.4,3136.8,0.7971633]
[1641710134268,46.94153266,3137.4,3136.6,3.37822589]
[1641710135071,47.73875266,3137.4,3136.6,3.37822589]
[1641710136415,47.73875266,3137.4,3136.6,0.00113685]
[1641710137719,1.03566743,3137.1,3136.6,0.00113685]
[1641710138118,0.00113685,3137.0,3136.6,0.00113685]
[1641710139773,0.00113685,3137.0,3136.6,2.45162046]
[1641710140171,0.00113685,3137.0,3136.6,0.00113685]
[1641710140573,0.00113685,3137.0,3136.6,2.43318309]
[1641710140870,0.00113685,3137.0,3136.7,0.79716]
[1641710141071,0.00113685,3137.0,3136.8,1.46886579]
[1641710141272,0.00113685,3137.0,3136.7,0.79716]
[1641710141671,0.00113685,3137.0,3136.8,0.7971599]
[1641710141871,0.00113685,3137.0,3136.8,3.22825414]
[1641710142370,0.00113685,3137.0,3136.8,0.7971599]
[1641710142574,0.00113685,3137.0,3136.6,3.30476778]
[1641710142915,0.00113685,3137.0,3136.7,0.797173]
[1641710144516,0.00113685,3137.0,3136.6,0.00113685]
[1641710145720,0.00113685,3137.0,3136.6,1.59554255]
[1641710145920,0.00113685,3137.0,3136.6,0.79833685]